bitfinex-derivatives/quotes_ETHF0:USTF0_20260116
["timestamp","ask_amount","ask_price","bid_price","bid_amount"]
[1768604862834,0.88645944,3296.6,3295.3,3.55399503]
[1768604863024,0.15172,3296.9,3295.3,3.55399503]
[1768604863224,0.88651887,3296.8,3295.3,3.55399503]
[1768604863431,0.88651887,3296.7,3295.3,3.55399503]
[1768604863726,0.15172,3296.9,3295.3,3.55399503]
[1768604863926,0.8862688,3296.8,3295.3,3.55399503]
[1768604864128,0.8862688,3296.7,3295.3,3.55399503]
[1768604864326,0.15172,3296.9,3295.3,3.55399503]
[1768604864522,0.88609708,3296.8,3295.3,3.55399503]
[1768604864825,0.88609708,3296.7,3295.3,3.55399503]
[1768604865025,0.15172,3296.9,3295.3,3.55399503]
[1768604865238,0.8860975,3296.8,3295.3,3.55399503]
[1768604865427,0.8860975,3296.7,3295.3,3.55399503]
[1768604865628,0.15172,3296.9,3295.3,3.55399503]
[1768604865828,0.88596482,3296.8,3295.3,3.55399503]
[1768604866028,0.88596482,3296.7,3295.3,3.55399503]
[1768604866235,0.15172,3296.9,3295.3,3.55399503]
[1768604866435,0.88585803,3296.8,3295.3,3.55399503]
[1768604866642,0.88585803,3296.7,3295.3,3.55399503]
[1768604866939,0.15172,3296.9,3295.3,3.55399503]
[1768604867240,0.88585803,3296.8,3295.3,3.55399503]
[1768604867537,0.88585803,3296.7,3295.3,3.55399503]
[1768604867733,0.15172,3296.9,3295.3,3.55399503]
[1768604867938,0.8857729,3296.8,3295.3,3.55399503]
[1768604868238,0.8857729,3296.7,3295.3,3.55399503]
[1768604868537,0.15172,3296.9,3295.3,3.55399503]
[1768604868737,0.88570494,3296.8,3295.3,3.55399503]
[1768604868940,0.88570494,3296.7,3295.3,3.55399503]
[1768604869238,0.15172,3296.9,3295.3,3.55399503]
[1768604869438,0.88565059,3296.8,3295.3,3.55399503]
[1768604869637,0.88565059,3296.7,3295.3,3.55399503]
[1768604869825,0.15172,3296.9,3295.3,3.55399503]
[1768604870028,0.88565059,3296.8,3295.3,3.55399503]
[1768604870228,0.88565059,3296.7,3295.3,3.55399503]
[1768604870539,0.15172,3296.9,3295.3,3.55399503]
[1768604870739,0.8856086,3296.8,3295.3,3.55399503]
[1768604871047,0.8856086,3296.7,3295.3,3.55399503]
[1768604871249,0.15172,3296.9,3295.3,3.55399503]
[1768604871441,0.88558027,3296.8,3295.3,3.55399503]
[1768604871743,0.88558027,3296.7,3295.3,3.55399503]
[1768604871927,0.15172,3296.9,3295.3,3.55399503]
[1768604872131,0.88557817,3296.8,3295.3,3.55399503]
[1768604872343,0.88557817,3296.7,3295.3,3.55399503]
[1768604872549,0.15172,3296.9,3295.3,3.55399503]
[1768604872733,0.88557001,3296.8,3295.3,3.55399503]
[1768604872933,0.15172,3296.9,3295.3,3.55399503]
[1768604873133,0.88553678,3296.8,3295.3,3.55399503]
[1768604873340,0.15172,3296.9,3295.7,3.37738198]
[1768604873541,0.88555084,3296.8,3295.7,3.37738198]
[1768604873848,0.15172,3296.9,3295.7,3.37738198]
[1768604874033,0.88555089,3296.8,3295.7,3.37738198]
[1768604874237,0.15172,3296.9,3295.7,3.37738198]
[1768604874539,0.8855731,3296.8,3295.7,3.37738198]
[1768604874739,0.15172,3296.9,3295.7,3.37738198]
[1768604874946,0.88557331,3296.8,3295.7,3.37738198]
[1768604875243,0.15172,3296.9,3295.7,3.37738198]
[1768604875433,0.88560403,3296.8,3295.7,3.37738198]
[1768604875634,0.15172,3296.9,3295.7,3.37738198]
[1768604875834,0.88560403,3296.8,3295.7,3.37738198]
[1768604876039,0.15172,3296.9,3295.7,3.37738198]
[1768604876342,0.88560408,3296.8,3295.7,3.37738198]
[1768604876644,0.15172,3296.9,3295.7,3.37738198]
[1768604876943,0.88564229,3296.8,3295.7,3.37738198]
[1768604877144,0.15172,3296.9,3295.7,3.37738198]
[1768604877345,0.88569009,3296.8,3295.7,3.37738198]
[1768604877640,0.15172,3296.9,3295.7,3.37738198]
[1768604877843,0.88569009,3296.8,3295.7,3.37738198]
[1768604878040,0.15172,3296.9,3295.7,3.37738198]
[1768604878342,1.86863301,3296.8,3295.7,3.37738198]
[1768604878544,0.88598072,3296.7,3295.7,3.37738198]
[1768604880449,0.98265229,3296.6,3295.7,3.37738198]
[1768604883863,0.98265229,3296.8,3295.7,3.37738198]
[1768604884159,0.88619524,3296.7,3295.7,3.37738198]
[1768604884362,0.88619524,3296.6,3295.7,3.37738198]
[1768604884560,0.98265229,3296.8,3295.7,3.37738198]
[1768604884860,0.88620785,3296.7,3295.7,3.37738198]
[1768604885052,0.88620785,3296.6,3295.7,3.37738198]
[1768604885251,0.98265229,3296.8,3295.7,3.37738198]
[1768604885455,0.8862296,3296.7,3295.7,3.37738198]
[1768604885657,0.8862296,3296.6,3295.7,3.37738198]
[1768604885855,0.98265229,3296.4,3295.7,3.37738198]
[1768604886057,0.98265229,3296.4,3295.1,3.37738198]
[1768604889659,0.98265229,3296.4,3295.1,4.36003427]
[1768604890070,0.98265229,3296.4,3295.2,3.37738198]
[1768604905586,0.98265229,3296.1,3295.2,3.37738198]
[1768604906988,0.98265229,3296.3,3295.2,3.37738198]
[1768604908190,0.89163298,3296.2,3295.2,3.37738198]
[1768604908387,0.98265229,3296.3,3295.2,3.37738198]
[1768604908588,0.89159498,3296.2,3295.2,3.37738198]
[1768604908789,0.98265229,3296.3,3295.2,3.37738198]
[1768604908985,0.89159497,3296.2,3295.2,3.37738198]
[1768604909185,0.98265229,3296.3,3295.2,3.37738198]
[1768604909386,0.89165573,3296.2,3295.2,3.37738198]
[1768604909585,0.98265229,3296.3,3295.2,3.37738198]
[1768604909791,0.89157914,3296.2,3295.2,3.37738198]
[1768604910091,0.98265229,3296.3,3295.2,3.37738198]
[1768604910289,0.89157914,3296.2,3295.2,3.37738198]
[1768604910593,0.98265229,3296.3,3295.2,3.37738198]
[1768604911293,0.98265229,3296.1,3295.2,3.37738198]
[1768604932410,0.15174,3296.5,3295.2,3.37738198]
[1768604932709,0.98265229,3296.2,3295.2,3.37738198]
[1768604934416,0.89161892,3296.1,3295.2,3.37738198]
[1768604934611,0.98265229,3296.2,3295.2,3.37738198]
[1768604934909,0.89161891,3296.1,3295.2,3.37738198]
[1768604935112,0.98265229,3296.2,3295.2,3.37738198]
[1768604935311,0.89161906,3296.1,3295.2,3.37738198]
[1768604935512,0.15174,3296.5,3295.2,3.37738198]
[1768604935713,0.89176678,3296.4,3295.2,3.37738198]
[1768604936012,0.89176678,3296.3,3295.2,3.37738198]
[1768604936215,0.89176678,3296.2,3295.2,3.37738198]
[1768604936513,0.89176678,3296.1,3295.2,3.37738198]
[1768604936705,0.15174,3296.5,3295.2,3.37738198]
[1768604936901,0.89185967,3296.4,3295.2,3.37738198]
[1768604937106,0.89185967,3296.3,3295.2,3.37738198]
[1768604937302,0.89185967,3296.2,3295.2,3.37738198]
[1768604937603,0.89185967,3296.1,3295.2,3.37738198]
[1768604937905,0.15174,3296.5,3295.2,3.37738198]
[1768604938105,0.89198862,3296.4,3295.2,3.37738198]
[1768604938307,0.89198862,3296.3,3295.2,3.37738198]
[1768604938614,0.89198862,3296.2,3295.2,3.37738198]
[1768604938815,0.89198862,3296.1,3295.2,3.37738198]
[1768604939016,0.15174,3296.5,3295.2,3.37738198]
[1768604939217,0.8920108,3296.4,3295.2,3.37738198]
[1768604939419,0.8920108,3296.3,3295.2,3.37738198]
[1768604939713,0.8920108,3296.2,3295.2,3.37738198]
[1768604939906,0.8920108,3296.1,3295.2,3.37738198]
[1768604940107,0.15174,3296.5,3295.2,3.37738198]
[1768604940300,0.89205918,3296.4,3295.2,3.37738198]
[1768604940505,0.89205918,3296.3,3295.2,3.37738198]
[1768604940707,0.89205918,3296.2,3295.2,3.37738198]
[1768604940912,0.89205918,3296.1,3295.2,3.37738198]
[1768604941111,0.15174,3296.5,3295.2,3.37738198]
[1768604941313,0.89213707,3296.4,3295.2,3.37738198]
[1768604941616,0.89213707,3296.3,3295.2,3.37738198]
[1768604973949,1.87524669,3296.3,3295.2,3.37738198]
[1768604974138,0.89213707,3296.2,3295.2,3.37738198]
[1768604974339,0.89213707,3296.1,3295.2,3.37738198]
[1768604974641,0.89213707,3296.0,3295.2,3.37738198]
[1768604974841,0.98310962,3296.3,3295.2,3.37738198]
[1768604975041,0.8917149,3296.2,3295.2,3.37738198]
[1768604975247,0.8917149,3296.1,3295.2,3.37738198]
[1768604975447,0.8917149,3296.0,3295.2,3.37738198]
[1768604975647,0.98310962,3296.3,3295.2,3.37738198]
[1768604975947,0.89164637,3296.2,3295.2,3.37738198]
[1768604976150,0.89164637,3296.1,3295.2,3.37738198]
[1768604976354,0.89164637,3296.0,3295.2,3.37738198]
[1768604976549,0.98310962,3296.3,3294.4,0.0038052]
[1768604976550,0.8916056,3295.9,3294.4,0.0038052]
[1768604976845,0.8916056,3295.8,3294.4,0.0038052]
[1768604977052,1.13485962,3296.3,3294.4,0.0038052]
[1768604977349,0.89161881,3296.2,3294.4,0.0038052]
[1768604977538,0.89161881,3296.1,3294.4,0.0038052]
[1768604977739,0.89161881,3296.0,3294.4,0.0038052]
[1768604978039,0.89161881,3295.9,3294.4,0.0038052]
[1768604978239,0.89161881,3295.8,3294.4,0.0038052]
[1768604978440,1.13485962,3296.3,3294.4,0.0038052]
[1768604978750,0.89129591,3296.2,3294.5,3.36185417]
[1768604978950,0.89129591,3296.1,3294.5,3.36185417]
[1768604979144,0.89129591,3296.0,3294.5,3.36185417]
[1768604979444,0.89129591,3295.9,3294.5,3.36185417]
[1768604979643,1.72,3296.1,3294.8,3.36185417]
[1768604982639,3.18773,3296.7,3295.1,3.36185417]
[1768604982842,1.72,3296.6,3295.1,3.36185417]
[1768604984645,0.98310962,3296.5,3295.1,3.36185417]
[1768604985552,1.72,3296.6,3295.1,3.36185417]
[1768604988955,5.14401678,3296.6,3295.1,3.36185417]
[1768604989458,0.98310962,3296.2,3294.5,3.36185417]
[1768604994151,0.88996096,3296.1,3294.5,3.36185417]
[1768604994350,0.98310962,3296.2,3294.5,3.36185417]
[1768604994554,0.8899626,3296.1,3294.5,3.36185417]
[1768604994858,0.98310962,3296.2,3294.5,3.36185417]
[1768604995057,0.88996274,3296.1,3294.5,3.36185417]
[1768604995254,0.98310962,3296.2,3294.5,3.36185417]
[1768604995558,0.88996193,3296.1,3294.5,3.36185417]
[1768604995750,0.98310962,3296.2,3294.5,3.36185417]
[1768604995950,0.88996192,3296.1,3294.5,3.36185417]
[1768604996150,0.98310962,3296.2,3294.5,3.36185417]
[1768604996346,0.15176,3296.0,3294.5,3.36185417]
[1768604996658,4.53442199,3295.8,3294.4,0.0038052]
[1768604996859,1.72,3295.7,3294.4,0.0038052]
[1768604997161,0.98310962,3295.6,3294.4,0.0038052]
[1768604997463,0.98364259,3295.3,3294.4,0.0038052]
[1768604997851,0.98364259,3295.5,3294.4,0.0038052]
[1768604998045,1.72273179,3295.7,3294.4,0.0038052]
[1768604998251,0.00273179,3295.7,3294.5,4.36097544]
[1768604998857,0.00273179,3295.7,3294.6,3.37733285]
[1768605000664,1.72,3295.9,3294.8,3.37733285]
[1768605001754,1.72350701,3295.9,3294.8,3.37733285]
[1768605009470,0.00350701,3295.9,3294.8,3.37733285]
[1768605010070,0.00350701,3295.9,3295.0,4.36097544]
[1768605010570,0.00350701,3295.9,3295.0,3.37733285]
[1768605025083,0.98364259,3296.2,3295.0,3.37733285]
[1768605025385,0.89035381,3296.1,3295.0,3.37733285]
[1768605025584,0.98364259,3296.2,3295.0,3.37733285]
[1768605025785,0.89036773,3296.1,3295.0,3.37733285]
[1768605026083,0.98364259,3296.2,3295.0,3.37733285]
[1768605026388,0.89330427,3296.1,3295.0,3.37733285]
[1768605026579,0.00295326,3296.1,3295.0,3.37733285]
[1768605027785,0.98659585,3296.1,3295.0,3.37733285]
[1768605027987,0.98659585,3296.1,3294.7,0.98364259]
[1768605029188,0.89109883,3296.0,3294.7,0.98364259]
[1768605029385,0.98659585,3296.1,3294.7,0.98364259]
[1768605029589,0.89110397,3296.0,3294.7,0.98364259]
[1768605029780,0.98659585,3296.1,3294.7,0.98364259]
[1768605029981,0.89110397,3296.0,3294.7,0.98364259]
[1768605030279,0.98659585,3296.1,3294.7,0.98364259]
[1768605030475,0.89110899,3296.0,3294.7,0.98364259]
[1768605030689,0.98659585,3296.1,3294.7,0.98364259]
[1768605030890,0.89110884,3296.0,3294.7,4.47880087]
[1768605031090,0.98659585,3296.1,3294.7,4.47880087]
[1768605031290,0.8911087,3296.0,3294.7,4.47880087]
[1768605031491,0.98659585,3296.1,3294.7,4.47880087]
[1768605031692,0.8911259,3296.0,3294.7,4.47880087]
[1768605031989,0.98659585,3296.1,3294.7,4.47880087]
[1768605032180,0.8911259,3296.0,3294.7,4.47880087]
[1768605032380,0.98659585,3296.1,3294.7,4.47880087]
[1768605032578,0.89114692,3296.0,3294.7,4.47880087]
[1768605032782,0.98659585,3296.1,3294.7,4.47880087]
[1768605032990,0.89114692,3296.0,3294.7,4.47880087]
[1768605033193,0.98659585,3296.1,3294.7,4.47880087]
[1768605033388,0.89117163,3296.0,3294.7,4.47880087]
[1768605033692,0.98659585,3296.1,3294.7,4.47880087]
[1768605033893,0.89117177,3296.0,3294.7,4.47880087]
[1768605034093,0.98659585,3296.1,3294.7,4.47880087]
[1768605034389,0.89117177,3296.0,3294.7,4.47880087]
[1768605034590,0.98659585,3296.1,3294.7,4.47880087]
[1768605034793,0.89120182,3296.0,3294.7,4.47880087]
[1768605034983,0.98659585,3296.1,3294.7,4.47880087]
[1768605035182,0.89120182,3296.0,3294.7,4.47880087]
[1768605035387,0.98659585,3296.1,3294.7,4.47880087]
[1768605035596,0.8912381,3296.0,3294.7,4.47880087]
[1768605035780,0.98659585,3296.1,3294.7,4.47880087]
[1768605035990,0.8912381,3296.0,3294.7,4.47880087]
[1768605036193,0.98659585,3296.1,3294.7,4.47880087]
[1768605036487,0.89128243,3296.0,3294.7,4.47880087]
[1768605036691,0.98659585,3296.1,3294.7,4.47880087]
[1768605036988,0.89128243,3296.0,3294.7,4.47880087]
[1768605037190,0.98659585,3296.1,3294.7,4.47880087]
[1768605037394,0.89133774,3296.0,3294.7,4.47880087]
[1768605037595,0.98659585,3296.1,3294.7,4.47880087]
[1768605037784,0.89133774,3296.0,3294.7,4.47880087]
[1768605037985,0.98659585,3296.1,3294.7,4.47880087]
[1768605038190,0.8913376,3296.0,3294.7,4.47880087]
[1768605038497,0.98659585,3296.1,3294.7,4.47880087]
[1768605038796,0.89142142,3296.0,3294.7,4.47880087]
[1768605039095,0.98659585,3296.1,3294.7,4.47880087]
[1768605039298,0.89142142,3296.0,3294.7,4.47880087]
[1768605039486,0.98659585,3296.1,3294.7,4.47880087]
[1768605039686,0.89154103,3296.0,3294.7,4.47880087]
[1768605039893,0.98659585,3296.1,3294.7,4.47880087]
[1768605040193,0.89154103,3296.0,3294.7,4.47880087]
[1768605040393,0.98659585,3296.1,3294.7,4.47880087]
[1768605040594,0.8915397,3296.0,3294.7,4.47880087]
[1768605040894,0.98659585,3296.1,3294.7,4.47880087]
[1768605041094,0.8915397,3296.0,3294.7,4.47880087]
[1768605041295,0.98659585,3296.1,3294.7,4.47880087]
[1768605041593,0.89153841,3296.0,3294.7,4.47880087]
[1768605041789,0.98659585,3296.1,3294.7,4.47880087]
[1768605041989,0.89153883,3296.0,3294.7,4.47880087]
[1768605042189,0.98659585,3296.1,3294.7,4.47880087]
[1768605042389,0.89153614,3296.0,3294.7,3.49515828]
[1768605042592,0.98659585,3296.1,3294.7,3.49515828]
[1768605042792,0.89153614,3296.0,3294.7,3.49515828]
[1768605042986,0.98659585,3296.1,3294.7,3.49515828]
[1768605043189,0.89153614,3296.0,3294.7,3.49515828]
[1768605043389,0.98659585,3296.1,3294.7,3.49515828]
[1768605043696,0.8915333,3296.0,3294.7,3.49515828]
[1768605043892,0.98659585,3296.1,3294.7,3.49515828]
[1768605044094,0.89153316,3296.0,3294.7,3.49515828]
[1768605044293,0.98659585,3296.1,3294.7,3.49515828]
[1768605044497,0.89153181,3296.0,3294.7,3.49515828]
[1768605044690,0.98659585,3296.1,3294.7,3.49515828]
[1768605044893,0.89153181,3296.0,3294.7,3.49515828]
[1768605045092,0.98659585,3296.1,3294.7,3.49515828]
[1768605045291,0.89153181,3296.0,3294.7,3.49515828]
[1768605045597,0.98659585,3296.1,3294.7,3.49515828]
[1768605045789,0.89153073,3296.0,3294.7,3.49515828]
[1768605045989,0.98659585,3296.1,3294.7,3.49515828]
[1768605046185,0.89153073,3296.0,3294.7,3.49515828]
[1768605046397,0.98659585,3296.1,3294.7,3.49515828]
[1768605046598,0.89152968,3296.0,3294.7,3.49515828]
[1768605046800,0.98659585,3296.1,3294.7,3.49515828]
[1768605047000,0.89152954,3296.0,3294.7,3.49515828]
[1768605047205,0.98659585,3296.1,3294.7,3.49515828]
[1768605047393,0.89152905,3296.0,3294.8,0.98364259]
[1768605047690,0.98659585,3296.1,3294.8,0.98364259]
[1768605047892,0.8915282,3296.0,3294.8,0.98364259]
[1768605048096,0.98659585,3296.1,3294.8,0.98364259]
[1768605048293,0.89152848,3296.0,3294.8,0.98364259]
[1768605048493,0.98659585,3296.1,3294.8,0.98364259]
[1768605048698,0.89152848,3296.0,3294.8,0.98364259]
[1768605048897,0.98659585,3296.1,3294.8,0.98364259]
[1768605049197,0.89152848,3296.0,3294.8,0.98364259]
[1768605049398,0.98659585,3296.1,3294.8,0.98364259]
[1768605049600,0.89152871,3296.0,3294.8,0.98364259]
[1768605049902,0.98659585,3296.1,3294.8,0.98364259]
[1768605050104,0.89152871,3296.0,3294.8,0.98364259]
[1768605050310,0.98659585,3296.1,3294.8,0.98364259]
[1768605050498,0.89152872,3296.0,3294.8,0.98364259]
[1768605050695,0.98659585,3296.1,3294.8,0.98364259]
[1768605050896,0.89152886,3296.0,3294.8,0.98364259]
[1768605051189,0.98659585,3296.1,3294.8,0.98364259]
[1768605051396,0.89152951,3296.0,3294.8,0.98364259]
[1768605051598,0.98659585,3296.1,3294.8,0.98364259]
[1768605051798,0.89152951,3296.0,3294.8,0.98364259]
[1768605052100,0.98659585,3296.1,3294.8,0.98364259]
[1768605052301,0.89152951,3296.0,3294.8,0.98364259]
[1768605052500,0.98659585,3296.1,3294.8,0.98364259]
[1768605052698,0.89153019,3296.0,3294.8,0.98364259]
[1768605052894,0.98659585,3296.1,3294.8,0.98364259]
[1768605053503,0.89144993,3296.0,3294.8,0.98364259]
[1768605053704,0.98659585,3296.1,3294.8,0.98364259]
[1768605053902,0.89144993,3296.0,3294.8,0.98364259]
[1768605054108,0.98659585,3296.1,3294.8,0.98364259]
[1768605054306,0.89144993,3296.0,3294.8,0.98364259]
[1768605054509,0.98659585,3296.1,3294.8,0.98364259]
[1768605054711,0.89144093,3296.0,3294.8,0.98364259]
[1768605054910,0.98659585,3296.1,3294.8,0.98364259]
[1768605055207,0.89144093,3296.0,3294.8,0.98364259]
[1768605055410,0.98659585,3296.1,3294.8,0.98364259]
[1768605055621,0.89143319,3296.0,3294.8,0.98364259]
[1768605055922,0.98659585,3296.1,3294.8,0.98364259]
[1768605056120,0.89143319,3296.0,3294.8,0.98364259]
[1768605056323,0.98659585,3296.1,3294.8,0.98364259]
[1768605056621,0.89142634,3296.0,3294.8,0.98364259]
[1768605056822,0.98659585,3296.1,3294.8,0.98364259]
[1768605057013,0.89142634,3296.0,3294.8,0.98364259]
[1768605057214,0.98659585,3296.1,3294.8,0.98364259]
[1768605057415,0.89142112,3296.0,3294.8,0.98364259]
[1768605057613,0.98659585,3296.1,3294.8,0.98364259]
[1768605057814,0.89142112,3296.0,3294.8,0.98364259]
[1768605058017,0.98659585,3296.1,3294.8,0.98364259]
[1768605058319,0.89104723,3296.0,3294.7,3.49515828]
[1768605058519,0.98659585,3296.1,3294.7,3.49515828]
[1768605058720,0.89104315,3296.0,3294.7,3.49515828]
[1768605059024,0.98659585,3296.1,3294.7,3.49515828]
[1768605059323,0.89104301,3296.0,3294.7,3.49515828]
[1768605059622,0.00295326,3296.1,3294.7,3.49515828]
[1768605059834,0.89104026,3296.0,3294.7,3.49515828]
[1768605060121,0.00295326,3296.1,3294.7,3.49515828]
[1768605060324,0.89103999,3296.0,3294.7,3.49515828]
[1768605060516,0.00295326,3296.1,3294.7,3.49515828]
[1768605060717,0.89103847,3296.0,3294.7,3.49515828]
[1768605061018,0.00295326,3296.1,3294.7,3.49515828]
[1768605061213,0.89106404,3296.0,3294.7,3.49515828]
[1768605061413,0.00295326,3296.1,3294.7,3.49515828]
[1768605061618,0.89106355,3296.0,3294.7,3.49515828]
[1768605061824,0.00295326,3296.1,3294.7,3.49515828]
[1768605062120,0.89106355,3296.0,3294.7,3.49515828]
[1768605062316,0.00295326,3296.1,3294.7,3.49515828]
[1768605062518,0.89105779,3296.0,3294.7,3.49515828]
[1768605062718,0.00295326,3296.1,3294.7,3.49515828]
[1768605062918,0.8910578,3296.0,3294.7,3.49515828]
[1768605063119,0.00295326,3296.1,3294.7,3.49515828]
[1768605063321,0.89105486,3296.0,3294.7,3.49515828]
[1768605063516,0.00295326,3296.1,3294.7,3.49515828]
[1768605063718,0.89105227,3296.0,3294.7,3.49515828]
[1768605063917,0.00295326,3296.1,3294.7,3.49515828]
[1768605064127,0.89105227,3296.0,3294.7,3.49515828]
[1768605064318,0.00295326,3296.1,3294.7,3.49515828]
[1768605064621,0.89104809,3296.0,3294.7,3.49515828]
[1768605064815,0.00295326,3296.1,3294.7,3.49515828]
[1768605065017,0.89104768,3296.0,3294.7,3.49515828]
[1768605065215,0.00295326,3296.1,3294.7,3.49515828]
[1768605065416,0.89104464,3296.0,3294.7,3.49515828]
[1768605065712,0.00295326,3296.1,3294.7,3.49515828]
[1768605065917,0.89104464,3296.0,3294.7,3.49515828]
[1768605066218,0.00295326,3296.1,3294.7,3.49515828]
[1768605066513,0.8910418,3296.0,3294.7,3.49515828]
[1768605066814,0.00295326,3296.1,3294.7,3.49515828]
[1768605067113,0.89104178,3296.0,3294.7,3.49515828]
[1768605067317,0.00295326,3296.1,3294.7,3.49515828]
[1768605067519,0.89103913,3296.0,3294.7,3.49515828]
[1768605067717,0.00295326,3296.1,3294.7,3.49515828]
[1768605067914,0.89103899,3296.0,3294.7,3.49515828]
[1768605068123,0.00295326,3296.1,3294.7,3.49515828]
[1768605068330,0.89103972,3296.0,3294.7,3.49515828]
[1768605068626,0.00295326,3296.1,3294.7,3.49515828]
[1768605068826,0.89103743,3296.0,3294.7,3.49515828]
[1768605069026,0.00295326,3296.1,3294.7,3.49515828]
[1768605069226,0.89103828,3296.0,3294.7,3.49515828]
[1768605069526,0.00295326,3296.1,3294.7,3.49515828]
[1768605069726,0.8910358,3296.0,3294.7,3.49515828]
[1768605070029,0.00295326,3296.1,3294.7,3.49515828]
[1768605070227,0.89103681,3296.0,3294.7,3.49515828]
[1768605070428,0.00295326,3296.1,3294.7,3.49515828]
[1768605070630,0.89103403,3296.0,3294.7,3.49515828]
[1768605070827,0.00295326,3296.1,3294.7,3.49515828]
[1768605071022,0.89103418,3296.0,3294.7,3.49515828]
[1768605071222,0.00295326,3296.1,3294.7,3.49515828]
[1768605071422,0.89103563,3296.0,3294.7,3.49515828]
[1768605071622,0.00295326,3296.1,3294.7,3.49515828]
[1768605071832,0.89103296,3296.0,3294.7,3.49515828]
[1768605072131,0.00295326,3296.1,3294.7,3.49515828]
[1768605072332,0.89103492,3296.0,3294.7,3.49515828]
[1768605072528,0.00295326,3296.1,3294.7,3.49515828]
[1768605072731,0.89103262,3296.0,3294.7,3.49515828]
[1768605072934,0.00295326,3296.1,3294.7,3.49515828]
[1768605073124,0.89103257,3296.0,3294.9,3.51359704]
[1768605073324,0.00295326,3296.1,3294.9,3.51359704]
[1768605073931,0.00295326,3296.1,3294.9,4.49676386]
[1768605074234,0.00295326,3296.1,3295.0,3.51359704]
[1768605077842,6.397,3296.8,3295.4,3.51359704]
[1768605078038,0.89020718,3296.7,3295.4,3.51359704]
[1768605078236,6.397,3296.8,3295.4,3.51359704]
[1768605078538,0.88984625,3296.7,3295.4,3.51359704]
[1768605078739,0.00328012,3296.7,3295.4,3.51359704]
[1768605092846,0.00328012,3296.7,3295.4,3.66538704]
[1768605093046,0.00328012,3296.7,3295.6,3.57882534]
[1768605093247,0.00328012,3296.7,3295.7,4.56199216]
[1768605093550,0.00328012,3296.7,3295.8,3.57882534]
[1768605093743,3.036,3297.6,3295.8,3.57882534]
[1768605093946,0.88800517,3297.5,3295.8,3.57882534]
[1768605094135,3.44508448,3297.5,3295.8,3.57882534]
[1768605094339,0.88780806,3297.4,3295.8,3.57882534]
[1768605094548,3.44508448,3297.5,3295.8,3.57882534]
[1768605094744,4.33289295,3297.4,3295.8,3.57882534]
[1768605094953,3.44508448,3297.4,3295.8,3.57882534]
[1768605095753,3.44508448,3297.3,3295.4,3.57882534]
[1768605106460,3.44508448,3297.3,3295.4,3.73061534]
[1768605109063,3.59678448,3297.3,3295.4,3.73061534]
[1768605109261,3.44508448,3297.1,3295.4,3.73061534]
[1768605114376,3.44508448,3297.1,3295.4,0.15179]
[1768605115364,0.98316682,3297.0,3295.4,0.15179]
[1768605115560,3.40321843,3296.9,3295.4,0.15179]
[1768605119372,0.98278463,3296.6,3295.4,0.15179]
[1768605121470,0.98278463,3296.6,3295.3,0.98278463]
[1768605121671,0.98278463,3296.2,3294.9,4.76161494]
[1768605121880,0.98278463,3296.2,3294.9,0.98278463]
[1768605123779,4.38600306,3296.4,3295.1,0.98278463]
[1768605125372,0.98278463,3296.6,3295.3,0.98278463]
[1768605125571,4.38600306,3296.8,3295.3,0.98278463]
[1768605125768,0.88689713,3296.7,3295.3,0.98278463]
[1768605125972,3.40321843,3296.7,3295.3,0.98278463]
[1768605128376,4.38600306,3296.6,3295.3,0.98278463]
[1768605129062,3.40321843,3296.5,3295.1,1.13458463]
[1768605129266,0.98278463,3296.2,3294.7,0.98278463]
[1768605129466,3.40321843,3296.1,3294.7,0.98278463]
[1768605130474,3.40321843,3296.1,3294.8,0.98278463]
[1768605134084,3.40321843,3296.1,3295.0,0.98278463]
[1768605136179,3.40321843,3296.1,3294.9,0.98278463]
[1768605141387,4.30784096,3296.0,3294.7,1.13460463]
[1768605148095,3.32505633,3295.7,3294.7,0.15182]
[1768605161301,3.32505633,3295.7,3294.8,0.98278463]
[1768605161500,3.32505633,3295.7,3295.0,0.98278463]
[1768605162901,3.32505633,3295.7,3294.8,0.98278463]
[1768605163108,3.26594872,3296.3,3294.8,0.98278463]
[1768605163407,3.26594872,3296.1,3294.8,0.98278463]
[1768605171212,3.26594872,3296.1,3295.1,0.98278463]
[1768605174517,3.26594872,3296.1,3294.9,0.98278463]
[1768605174908,3.42375434,3296.0,3294.7,1.13460463]
[1768605176118,0.98278463,3295.9,3294.7,0.15182]
[1768605176322,4.40653897,3295.7,3294.7,0.15182]
[1768605176508,3.42375434,3295.6,3294.7,0.15182]
[1768605182331,3.42375434,3296.2,3294.7,0.15182]
[1768605182629,0.88929733,3296.1,3294.7,0.15182]
[1768605182823,3.42375434,3296.2,3294.7,0.15182]
[1768605183024,3.42375434,3296.0,3294.7,0.15182]
[1768605183935,3.42375434,3296.0,3294.8,0.98324184]
[1768605185231,3.42375434,3296.0,3294.7,0.15182]
[1768605241291,3.42375434,3296.0,3295.0,0.98293278]
[1768605242989,3.42375434,3296.0,3295.5,0.98293278]
[1768605246492,3.50668564,3297.0,3295.9,0.98293278]
[1768605246688,0.15168,3297.7,3295.9,0.98293278]
[1768605246689,3.50668564,3296.8,3295.9,0.98293278]
[1768605250797,3.50668564,3296.8,3296.1,0.98293278]
[1768605250990,3.50668564,3296.8,3296.3,0.98293278]
[1768605252601,0.00214388,3297.5,3296.5,0.98293278]
[1768605253095,0.00214388,3297.5,3296.3,0.98293278]
[1768605256487,0.98293278,3297.4,3296.1,0.15176]
[1768605256691,4.48961842,3297.0,3295.5,3.47771278]
[1768605257201,4.48961842,3297.0,3295.7,0.98293278]
[1768605260394,3.50668564,3297.0,3295.7,0.98293278]
[1768605262503,3.50668564,3297.0,3295.5,0.15178]
[1768605262504,3.50387198,3296.9,3295.5,1.13471278]
[1768605262698,0.98293278,3296.8,3295.5,0.15178]
[1768605262900,3.50387198,3296.9,3295.6,0.98293278]
[1768605265305,0.98293278,3296.8,3295.5,0.15178]
[1768605265608,3.50387198,3296.7,3295.5,0.15178]
[1768605266006,3.50387198,3296.7,3295.6,0.98293278]
[1768605267702,3.50387198,3296.7,3295.5,0.15178]
[1768605268013,3.50387198,3296.7,3295.6,0.98293278]
[1768605271807,3.50387198,3296.7,3295.5,0.15178]
[1768605285326,3.50387198,3296.7,3295.4,0.98293278]
[1768605290521,3.55516352,3298.5,3296.6,4.39154963]
[1768605290722,3.55516352,3298.3,3296.9,0.98293278]
[1768605290924,3.55516352,3298.0,3296.4,2.331]
[1768605291125,3.55516352,3298.0,3296.5,0.98293278]
[1768605291429,0.98293278,3297.8,3296.4,3.31293278]
[1768605291723,0.98293278,3299.0,3296.4,3.31293278]
[1768605291724,3.57644608,3299.7,3297.8,3.44730554]
[1768605292025,3.57644608,3299.3,3298.0,0.98293278]
[1768605292219,0.98293278,3299.1,3297.7,0.98293278]
[1768605292422,4.55937886,3299.1,3297.7,0.98293278]
[1768605293218,4.55937886,3299.1,3297.8,0.98293278]
[1768605293421,4.55937886,3299.1,3297.7,0.98293278]
[1768605293721,3.57644608,3299.1,3298.0,0.98293278]
[1768605294223,4.55937886,3299.5,3298.0,0.98293278]
[1768605294422,3.57644608,3299.4,3298.0,0.98293278]
[1768605295918,3.57644608,3299.4,3298.3,0.98293278]